Workbook

Sheet Tabelle1
A2: Name | B2: Ticker | C2: Kurs | D2: Vortag | E2: Änderung | F2: Änderung % | G2: Kursdatum | H2: Kurszeit | I2: Stück | J2: Wert | K2: Kaufkurs | L2: Investition | M2: Gew./Verl. | N2: Gew./Verl. %
A3: Dt. Telekom | B3: DTE.HA | C3: 13.825 | D3: 13.845 | E3: -0.020000458 | F3: -0.14445978 | G3: 2018-06-15T08:10:24 | H3: 43266.34056 | I3: 1 | J3: =I3*C3 -> 13.825 | K3: 13 | L3: =I3*K3 -> 13 | M3: =J3-L3 -> 0.825 | N3: =M3/L3 -> 0.06346153846
A4: Bayer | B4: BAYN.DE | C4: 100.08 | D4: 100.8 | E4: -0.7200012 | F4: -0.71428686 | G4: 2018-06-15T17:35:00 | H4: 43266.73264 | I4: 1 | J4: =I4*C4 -> 100.08 | K4: 100 | L4: =I4*K4 -> 100 | M4: =J4-L4 -> 0.08 | N4: 0.0008
A5: BASF | B5: BAS.F | C5: 87.64 | D5: 88.38 | E5: -0.73999786 | F5: -0.8372911 | G5: 2018-06-15T18:44:38 | H5: 43266.781 | I5: 1 | J5: 87.64 | K5: 900 | L5: 900 | M5: -812.36 | N5: -0.9026222222
A6: SAP | B6: SAP.DU | C6: 103.9 | D6: 104.4 | E6: -0.5 | F6: -0.4789272 | G6: 2018-06-15T17:15:25 | H6: 43266.71904 | I6: 1 | J6: 103.9 | K6: 100 | L6: 100 | M6: 3.9 | N6: 0.039
A7: Daimler | B7: DAI.SG | C7: 62.33 | D7: 63.17 | E7: -0.83999634 | F7: -1.3297393 | G7: 2018-06-15T21:58:53 | H7: 43266.91589 | I7: 1 | J7: 62.33 | K7: 60 | L7: 60 | M7: 2.33 | N7: 0.03883333333
A8: Achmea B.V. EO-Medium-T | B8: NL0000168714.NX | C8: 103.5 | D8: 103.2 | E8: 0.30000305 | F8: 0.29070064 | G8: 2018-06-15T15:18:37 | H8: 43266.63793 | I8: 1 | J8: 103.5 | K8: 100 | L8: 100 | M8: 3.5 | N8: 0.035
A9: db x-trackers MSCI World ETF 1D | B9: XDWL.F | C9: 49.57 | D9: 49.92 | E9: -0.34999847 | F9: -0.70111877 | G9: 2018-06-15T19:55:05 | H9: 43266.82992 | I9: 1 | J9: =I9*C9 -> 49.57 | K9: 30 | L9: =I9*K9 -> 30 | M9: =J9-L9 -> 19.57 | N9: =M9/L9 -> 0.6523333333
A10: iShares JPM EM Bond ETF | B10: IUS7.SG | C10: 90.34 | D10: 90.405 | E10: -0.06500244 | F10: 0 | G10: 2018-06-15T21:55:20 | H10: 43266.91343 | I10: 1 | J10: 90.34 | K10: 90 | L10: 90 | M10: 0.34 | N10: 0.003777777778
A11: UBS MSCI EM ETF | B11: UIMI.F | C11: 93.71 | D11: 95.43 | E11: -1.7200012 | F11: -1.8023696 | G11: 2018-06-15T19:55:05 | H11: 43266.82992 | I11: 1 | J11: =I11*C11 -> 93.71 | K11: 50 | L11: =I11*K11 -> 50 | M11: =J11-L11 -> 43.71 | N11: =M11/L11 -> 0.8742
A12: Templeton Global Bond Fund Class A (Ydis) EUR-H1 | B12: YF5R.MU | C12: 8.975 | D12: 8.975 | E12: 0 | F12: 0 | G12: 2018-06-15T16:00:04 | H12: 43266.66671 | I12: 1 | J12: 8.975 | K12: 8 | L12: 8 | M12: 0.975 | N12: 0.121875
A13: EURKES | B13: EURKES=x | C13: 117.15213 | D13: 116.867325 | E13: 0.2848053 | F13: 0.24369968 | G13: 2018-06-16T01:33:37 | H13: 43267.06501 | I13: 1 | J13: =I13*C13 -> 117.15213 | K13: 115 | L13: =I13*K13 -> 115 | M13: =J13-L13 -> 2.15213 | N13: =M13/L13 -> 0.01871417391
A14: EURRWF | B14: EURRWF=x | C14: 985.7607 | D14: 983.36426 | E14: 2.3964233 | F14: 0.2436964 | G14: 2018-06-16T01:33:36 | H14: 43267.065 | I14: 1 | J14: 985.7607 | K14: 980 | L14: 980 | M14: 5.7607 | N14: 0.005878265306
A15: EURBTC | B15: EURBTC=x | C15: 0.00017987698 | D15: 0.00017943968 | E15: 4.372996e-07 | F15: 0.24370283 | G15: 2018-06-16T14:02:22 | H15: 43267.58498 | I15: 1 | J15: 0.00017987698 | K15: 0.00015 | L15: 0.00015 | M15: 2.987698e-05 | N15: 0.1991798667
A16: EURUSD | B16: EURUSD=x | C16: 1.1604967 | D16: 1.1576754 | E16: 0.0028213263 | F16: 0.24370325 | G16: 2018-06-15T23:29:59 | H16: 43266.97916 | I16: 1 | J16: =I16*C16 -> 1.1604967 | K16: 1.2 | L16: =I16*K16 -> 1.2 | M16: =J16-L16 -> -0.0395033 | N16: =M16/L16 -> -0.03291941667
